bitfinex/quotes_ETHUSD_20240718
["timestamp","ask_amount","ask_price","bid_price","bid_amount"]
[1721263689809,2.93485,3407.4,3407.1,0.1464162]
[1721263690906,2.93463,3407.6,3407.1,0.1464162]
[1721263691114,2.93473,3407.5,3407.1,0.1464162]
[1721263691311,2.93463,3407.6,3407.1,0.1464162]
[1721263691312,2.93482,3407.4,3407.1,0.1464162]
[1721263691625,2.93463,3407.6,3407.1,0.1464162]
[1721263693526,5.86946,3407.5,3407.1,0.1464162]
[1721263693699,2.9347,3407.5,3407.1,0.1464162]
[1721263693915,2.93454,3407.7,3407.1,0.1464162]
[1721263694100,2.93462,3407.6,3407.1,0.1464162]
[1721263696105,2.93445,3407.8,3407.1,0.1464162]
[1721263696726,5.86863,3408.0,3407.1,0.1464162]
[1721263697032,2.93393,3408.4,3407.4,2.93476]
[1721263697237,2.93393,3408.4,3407.6,2.93456]
[1721263697595,2.93377,3408.6,3407.7,2.93449]
[1721263697791,2.934,3408.4,3407.7,2.93449]
[1721263698191,2.93401,3408.3,3407.5,2.93464]
[1721263698637,2.93401,3408.3,3407.6,2.9346]
[1721263699126,2.93416,3408.2,3407.4,2.93475]
[1721263699291,2.93419,3408.1,3407.4,2.93475]
[1721263700328,2.93401,3408.3,3407.6,2.93456]
[1721263700728,2.93385,3408.5,3407.7,2.93446]
[1721263701132,12.1572,3409.0,3407.8,2.93442]
[1721263701133,2.93352,3408.9,3407.8,2.93442]
[1721263701335,2.93352,3408.9,3408.1,2.93418]
[1721263701538,2.3722,3409.0,3407.7,0.293446]
[1721263701699,2.93334,3409.1,3408.3,2.93399]
[1721263702438,2.93344,3409.0,3408.3,2.93399]
[1721263705493,2.80010787,3409.4,3408.3,0.832267]
[1721263705633,10.19298,3409.5,3408.0,2.4545]
[1721263705839,2.93298,3409.5,3408.7,2.93365]
[1721263706036,2.93312,3409.4,3408.7,2.93365]
[1721263706435,2.93298,3409.5,3408.7,2.93365]
[1721263706681,3.0,3409.6,3408.8,2.93356]
[1721263706836,3.0,3409.6,3407.9,3.0]
[1721263706837,5.93289,3409.6,3408.9,2.93349]
[1721263707938,5.19312,3409.8,3408.7,5.39346]
[1721263707939,2.93272,3409.8,3408.7,5.39346]
[1721263708177,2.93257,3410.0,3409.1,2.93331]
[1721263708385,5.93257,3410.0,3409.1,2.93331]
[1721263708679,5.93257,3410.0,3409.2,2.93322]
[1721263709037,3.0,3410.0,3409.3,2.93314]
[1721263709540,3.0,3410.0,3409.4,2.93304]
[1721263710440,5.93255,3410.0,3409.4,2.93304]
[1721263711787,2.93244,3410.2,3409.4,2.93304]
[1721263711958,2.93244,3410.2,3409.5,2.93296]
[1721263712171,9.5585,3410.6,3409.5,5.92557]
[1721263712341,7.26,3410.6,3409.9,2.93263]
[1721263712658,10.19205,3410.6,3409.9,2.93263]
[1721263713645,10.19205,3410.6,3409.7,5.86547]
[1721263713976,10.19205,3410.6,3409.9,2.93262]
[1721263714477,10.19205,3410.6,3409.8,2.93269]
[1721263715143,2.93222,3410.4,3409.6,2.93288]
[1721263715340,7.26,3410.6,3409.2,2.93318]
[1721263715341,2.93243,3410.2,3409.2,2.93318]
[1721263717098,2.93243,3410.2,3409.5,2.93295]
[1721263717296,2.93236,3410.3,3409.5,2.93295]
[1721263717700,2.93238,3410.2,3409.5,2.93295]
[1721263720676,2.93272,3409.8,3408.9,2.93342]
[1721263720878,2.93272,3409.8,3409.0,3.0]
[1721263721670,2.93272,3409.8,3408.9,2.93342]
[1721263721972,2.93272,3409.8,3409.0,2.9334]
[1721263722368,2.93282,3409.7,3409.0,2.9334]
[1721263722789,2.93272,3409.8,3408.8,2.93353]
[1721263722998,2.3875,3410.1,3408.1,2.93418]
[1721263722999,2.93307,3409.4,3408.6,2.93367]
[1721263723193,2.9329,3409.6,3408.8,2.93357]
[1721263723365,2.93301,3409.5,3408.8,2.93357]
[1721263724524,2.93275,3409.8,3409.0,2.9334]
[1721263724900,2.93253,3410.1,3409.2,2.93322]
[1721263725081,2.93232,3410.3,3409.1,5.37942]
[1721263725276,2.4691,3410.5,3409.6,2.93281]
[1721263725483,2.93198,3410.7,3409.6,2.93281]
[1721263725683,5.4009,3410.9,3409.8,2.93265]
[1721263726008,2.93204,3410.6,3409.8,2.93265]
[1721263726527,2.93186,3410.8,3409.8,2.93265]
[1721263726528,5.93212,3410.5,3409.8,2.93265]
[1721263726875,5.93212,3410.5,3409.6,2.93283]
[1721263728083,2.93212,3410.5,3409.6,2.93283]
[1721263728279,2.93212,3410.5,3409.6,3.226113]
[1721263728731,2.93212,3410.5,3409.8,2.93272]
[1721263730486,2.93195,3410.7,3409.9,2.93263]
[1721263730706,2.9318,3410.9,3410.0,2.93254]
[1721263730920,2.93197,3410.7,3410.0,2.93254]
[1721263733184,2.93203,3410.6,3409.8,2.2604]
[1721263733426,2.9323,3410.3,3409.3,2.93308]
[1721263733627,2.93246,3410.1,3409.4,2.93305]
[1721263735383,2.93246,3410.1,3409.3,2.93308]
[1721263735583,2.93246,3410.1,3409.4,2.93305]
[1721263736306,2.93273,3409.8,3409.1,5.93329]
[1721263737229,2.93273,3409.8,3409.1,2.93329]
[1721263737394,2.93281,3409.7,3409.0,2.93335]
[1721263738639,2.4916,3409.9,3409.2,2.93322]
[1721263738640,2.93263,3409.9,3409.2,2.93322]
[1721263739206,2.93224,3410.4,3409.2,0.586654]
[1721263739403,2.93224,3410.4,3408.9,2.2994]
[1721263739404,5.93224,3410.4,3408.9,2.2994]
[1721263739897,2.9324,3410.2,3409.5,2.93291]
[1721263740958,2.93224,3410.4,3409.7,2.9328]
[1721263741121,2.93224,3410.4,3409.6,5.24423]
[1721263741615,2.93224,3410.4,3409.8,2.9327]
[1721263741818,10.19204,3410.6,3409.8,2.9327]
[1721263741819,2.93212,3410.5,3409.8,2.9327]
[1721263742018,2.93221,3410.4,3409.8,2.9327]
[1721263742534,2.93213,3410.5,3409.8,2.9327]
[1721263744317,2.93222,3410.4,3409.7,2.93279]
[1721263744517,2.93251,3410.1,3409.4,2.93304]
[1721263746403,2.93234,3410.3,3409.5,2.93296]
[1721263746944,2.93213,3410.5,3409.8,2.93271]
[1721263747155,7.26,3410.6,3409.9,2.93263]
[1721263747452,2.93193,3410.8,3409.9,2.93263]
[1721263747628,2.93193,3410.8,3410.1,2.93244]
[1721263747959,2.93196,3410.7,3410.1,2.93244]
[1721263748254,2.93193,3410.8,3410.1,2.93244]
[1721263749052,2.93196,3410.7,3410.1,2.93244]
[1721263749416,2.93183,3410.9,3410.1,2.93244]
[1721263749622,2.93188,3410.8,3410.1,2.93244]
[1721263749820,4.15563945,3411.0,3410.1,2.93244]
[1721263750021,2.93186,3410.8,3410.1,2.93244]
[1721263752442,2.93172,3411.0,3410.1,2.93244]
[1721263752748,2.93172,3411.0,3410.3,2.93224]
[1721263753245,2.93178,3410.9,3410.2,2.93237]
[1721263753656,2.93172,3411.0,3410.3,2.93229]
[1721263754022,11.41551945,3411.1,3410.4,2.93213]
[1721263754224,4.15551945,3411.1,3410.4,2.93213]
[1721263754812,1.22391945,3411.0,3410.4,2.93213]
[1721263755617,1.22391945,3411.0,3410.5,5.33488]
[1721263755921,1.22391945,3411.2,3410.5,5.33488]
[1721263756122,1.22391945,3411.4,3410.8,2.93186]
[1721263756337,1.22391945,3411.5,3410.8,2.93186]
[1721263757350,11.41508945,3411.6,3410.8,2.93186]
[1721263757669,2.93127,3411.5,3410.8,2.93186]
[1721263757964,2.93127,3411.5,3410.6,2.93202]
[1721263757965,2.93136,3411.4,3410.6,2.93202]
[1721263758159,4.15527945,3411.4,3410.6,2.93202]
[1721263758363,2.93136,3411.4,3410.6,2.93202]
[1721263758567,2.93136,3411.4,3410.5,2.4028]
[1721263758568,2.93151,3411.2,3410.5,2.4028]
[1721263759350,2.93186,3410.8,3410.1,2.4005]
[1721263759757,2.93212,3410.5,3409.8,2.93265]
[1721263759958,2.93212,3410.5,3409.6,5.33337]
[1721263759959,2.93212,3410.5,3409.6,5.33333]
[1721263760130,2.93222,3410.4,3409.6,5.33333]
[1721263760343,2.93237,3410.2,3409.6,2.4005]
[1721263760653,2.93212,3410.5,3409.6,2.4005]
[1721263761153,2.93231,3410.3,3409.6,5.33333]
[1721263761758,2.93212,3410.5,3409.7,2.9328]
[1721263761942,2.93197,3410.7,3409.8,2.9327]
[1721263762147,2.93186,3410.8,3410.1,2.93246]
[1721263762349,8.48391945,3411.0,3410.2,2.3433]
[1721263762522,7.26,3411.0,3410.3,2.93222]
[1721263762723,2.93163,3411.1,3410.3,2.93222]
[1721263762724,2.93153,3411.2,3410.5,2.93204]
[1721263763456,2.93144,3411.3,3410.5,2.93204]
[1721263763824,2.93152,3411.2,3410.5,2.93204]
[1721263764363,1.22391945,3411.3,3410.6,2.93199]
[1721263764654,2.93135,3411.4,3410.6,2.93199]
[1721263764834,2.93135,3411.4,3410.6,3.518393]
[1721263765447,2.93135,3411.4,3410.7,2.93194]
[1721263765768,7.26,3411.5,3410.8,2.93184]
[1721263765977,7.26,3411.5,3410.9,2.3185]
[1721263766144,10.19126,3411.5,3410.9,2.3185]
[1721263766330,7.26,3411.5,3410.9,2.3185]
[1721263766520,7.26,3411.5,3411.0,2.93162]
[1721263766726,2.931,3411.8,3411.1,2.93153]
[1721263768034,2.931,3411.8,3410.9,2.9021743]
[1721263768035,2.9311,3411.7,3410.9,5.8338943]
[1721263768547,2.9311,3411.7,3411.0,2.93166]
[1721263771036,2.9311,3411.7,3411.1,2.93159]
[1721263771472,2.9311,3411.7,3411.0,2.93166]
[1721263772037,2.9311,3411.7,3411.1,2.9316]
[1721263773029,2.9311,3411.7,3410.9,5.8338943]
[1721263773229,2.9311,3411.7,3410.9,5.25022]
[1721263773664,2.9311,3411.7,3411.0,2.93168]
[1721263774329,2.93118,3411.6,3410.9,2.3185]
[1721263774549,2.93118,3411.6,3410.9,5.25022]
[1721263775326,2.93118,3411.6,3411.0,2.93168]
[1721263776123,2.93135,3411.4,3410.9,2.3185]
[1721263776422,2.93135,3411.4,3410.7,2.93193]
[1721263777553,2.93118,3411.6,3410.8,2.93185]
[1721263777883,2.93128,3411.5,3410.8,2.93185]
[1721263778633,2.93118,3411.6,3410.9,2.93177]
[1721263782158,2.93126,3411.5,3410.7,2.93194]
[1721263782954,2.93126,3411.5,3410.8,2.93186]
[1721263785183,2.93126,3411.5,3410.9,2.93177]
[1721263785484,2.93114,3411.7,3410.9,2.93177]
[1721263785691,2.93104,3411.8,3410.9,2.93177]
[1721263785692,2.93118,3411.6,3410.9,3.6004372]
[1721263788081,2.93126,3411.5,3410.9,3.6004372]
[1721263788397,2.93126,3411.5,3410.9,2.93177]
[1721263788556,11.41479945,3412.0,3411.2,2.93143]
[1721263788758,10.19088,3412.0,3411.3,2.9314]
[1721263789059,10.19088,3412.0,3411.4,2.4105]
[1721263789060,2.93088,3412.0,3411.4,2.4105]
[1721263790390,2.93088,3412.0,3411.3,2.9314]
[1721263790580,2.93092,3411.9,3411.1,5.86307]
[1721263790763,2.93092,3411.9,3411.2,2.9315]
[1721263791280,2.93092,3411.9,3411.3,2.93141]
[1721263791482,2.93092,3411.9,3411.3,3.758754]
[1721263791691,2.93092,3411.9,3411.1,2.93153]
[1721263791896,2.93116,3411.7,3410.9,2.93174]
[1721263793170,2.93122,3411.6,3410.9,2.93174]
[1721263793356,2.93122,3411.6,3410.6,3.236862]
[1721263793561,2.93122,3411.6,3410.6,2.4139]
[1721263794568,2.93122,3411.6,3410.9,2.93177]
[1721263798464,2.93126,3411.5,3410.9,2.93177]
[1721263799091,3.62781945,3411.8,3410.6,2.4139]
[1721263799092,2.93134,3411.4,3410.6,2.4139]
[1721263799301,2.93143,3411.3,3410.6,5.34593]
[1721263799694,2.93143,3411.3,3410.6,2.4139]
[1721263800516,2.93169,3411.0,3410.3,2.3257]
[1721263800728,2.93183,3410.9,3410.2,3.0]
[1721263801085,2.93169,3411.0,3410.1,2.9324]
[1721263801086,2.93186,3410.8,3410.1,2.9324]
[1721263801438,2.932,3410.7,3409.9,5.25832]
[1721263801627,2.93186,3410.8,3409.8,2.93271]
[1721263801628,2.93204,3410.6,3409.8,2.93271]
[1721263801784,2.93204,3410.6,3409.8,0.9017842]
[1721263801983,2.93195,3410.7,3409.9,2.93261]
[1721263802188,2.93207,3410.6,3409.8,3.8344842]
[1721263802386,2.93207,3410.6,3409.9,3.0]
[1721263802927,2.93207,3410.6,3409.9,5.93262]
[1721263803296,2.93213,3410.5,3409.9,3.0]
[1721263803495,2.93222,3410.4,3409.7,2.93276]
[1721263806729,2.93189,3410.8,3409.8,3.751852]
[1721263806927,2.93175,3411.0,3410.1,2.9324]
[1721263807102,2.93184,3410.9,3410.1,2.9324]
[1721263807296,2.93184,3410.9,3410.2,5.28487]
[1721263807626,1.22391945,3411.1,3410.3,2.93223]
[1721263807627,2.93165,3411.1,3410.3,2.93223]
[1721263808120,2.9315,3411.3,3410.4,2.99082106]
[1721263808296,2.93154,3411.2,3410.6,2.93203]
[1721263809016,2.93154,3411.2,3410.4,2.93218]
[1721263809207,2.93162,3411.1,3410.4,2.93218]
[1721263810137,4.15541945,3411.3,3410.5,2.9321]
[1721263810627,4.15531945,3411.4,3410.6,2.93203]
[1721263810951,1.22391945,3411.5,3410.9,2.93177]
[1721263811129,11.41502945,3411.7,3411.0,2.93168]
[1721263811427,2.93092,3411.9,3411.2,2.93151]
[1721263812448,8.48391945,3412.2,3411.6,2.93112]
[1721263812738,7.26,3412.2,3411.7,2.93108]
[1721263812947,2.93058,3412.3,3411.5,2.9312]
[1721263813250,1.22391945,3412.5,3411.6,2.93114]
[1721263813553,2.9305,3412.4,3411.6,2.93114]
[1721263813840,2.93057,3412.3,3411.5,2.93125]
[1721263814043,2.93057,3412.3,3411.0,0.812662]
[1721263814044,2.93057,3412.3,3411.6,2.93117]
[1721263815039,2.93046,3412.5,3411.7,2.93107]
[1721263815428,2.93046,3412.5,3411.8,2.93098]
[1721263816323,2.93046,3412.5,3411.9,2.93091]
[1721263816727,2.93046,3412.5,3411.6,2.93116]
[1721263816728,2.93046,3412.5,3411.8,2.93099]
[1721263819469,2.93046,3412.5,3411.6,2.93116]
[1721263819827,2.93046,3412.5,3411.4,2.93132]
[1721263820033,2.93066,3412.2,3411.4,2.93132]
[1721263820557,2.93066,3412.2,3411.5,2.93126]
[1721263821266,2.9305,3412.4,3411.6,2.93115]
[1721263821441,2.9304,3412.5,3411.6,3.517391]
[1721263821643,2.9304,3412.5,3411.8,2.93094]
[1721263821877,2.93028,3412.7,3411.9,5.21669]
[1721263822229,5.86017,3412.9,3412.0,2.93077]
[1721263822466,1.22391945,3413.1,3411.9,2.2858]
[1721263822467,4.15382945,3413.1,3412.1,2.93074]
[1721263822673,3.0,3413.0,3412.1,2.93074]
[1721263823231,2.93015,3412.8,3412.1,2.93074]
[1721263823956,5.92997,3413.0,3412.2,2.93065]
[1721263824472,5.92997,3413.0,3412.3,2.93053]
[1721263824682,2.92989,3413.1,3412.4,2.93046]
[1721263825500,2.92971,3413.3,3412.5,2.93039]
[1721263825852,2.9298,3413.2,3412.5,2.93039]
[1721263826572,7.26,3413.4,3412.7,2.93014]
[1721263826782,2.92938,3413.7,3412.7,5.788745]
[1721263827079,2.92938,3413.7,3413.0,2.92996]
[1721263827555,2.92946,3413.6,3412.8,2.93014]
[1721263828641,2.92946,3413.6,3412.9,2.93004]
[1721263828972,2.92955,3413.5,3412.7,2.2725]
[1721263829177,2.92955,3413.5,3412.8,2.93008]
[1721263829390,2.92946,3413.6,3412.9,2.93003]
[1721263831059,7.26,3413.9,3413.0,0.05859606]
[1721263831270,7.26,3413.9,3413.2,2.92972]
[1721263831478,7.26,3413.9,3413.3,2.98821902]
[1721263831679,7.26,3413.9,3413.4,5.18072]
[1721263831881,2.9291,3414.1,3413.4,5.18072]
[1721263831882,2.92912,3414.0,3413.4,5.18072]
[1721263832356,2.92888,3414.3,3413.4,5.18072]
[1721263833091,2.92909,3414.1,3413.4,5.18072]
[1721263833473,2.92888,3414.3,3413.5,2.92951]
[1721263833803,2.92895,3414.2,3413.4,2.89592187]
[1721263834006,2.92904,3414.1,3413.4,5.18072]
[1721263834995,2.9292,3413.9,3413.2,2.92978]
[1721263835701,2.92912,3414.0,3413.1,2.3967]
[1721263835899,2.92912,3414.0,3413.3,2.9297]
[1721263837500,2.92894,3414.2,3413.4,2.92961]
[1721263837703,2.92894,3414.2,3413.5,0.292961]
[1721263838209,10.1888,3414.4,3413.6,2.92945]
[1721263838505,2.92852,3414.7,3414.0,2.9291]
[1721263839103,15.51394,3414.9,3414.0,2.9291]
[1721263839104,2.92843,3414.8,3414.0,2.9291]
[1721263839309,10.26,3414.9,3414.0,2.9291]
[1721263839477,7.26,3414.9,3414.4,2.92877]
[1721263840092,7.26,3414.9,3413.9,2.92913]
[1721263840268,2.92856,3414.7,3414.0,2.92909]
[1721263840463,2.92856,3414.7,3413.5,5.525]
[1721263840464,2.3605,3414.8,3413.5,3.0]
[1721263840665,2.92876,3414.5,3413.6,3.0]
[1721263840969,2.3605,3414.8,3413.1,2.92987]
[1721263841200,2.92909,3414.1,3413.3,2.92971]
[1721263841798,2.92909,3414.1,3413.4,2.92962]
[1721263842703,2.92909,3414.1,3413.3,2.92968]
[1721263842880,2.92911,3414.0,3413.3,2.92968]
[1721263843285,2.92911,3414.0,3413.3,3.815635]
[1721263843612,2.92911,3414.0,3413.4,2.92962]
[1721263844979,2.92886,3414.3,3413.4,2.92962]
[1721263845389,2.92895,3414.2,3413.4,2.92962]
[1721263845908,2.92895,3414.2,3413.3,0.885955]
[1721263845909,2.92886,3414.3,3413.5,2.92954]
[1721263846082,2.92886,3414.3,3413.7,2.92936]
[1721263849422,10.18863,3414.6,3413.8,2.92927]
[1721263849713,7.26,3414.6,3414.0,2.92911]
[1721263849924,2.92865,3414.6,3413.8,2.92923]
[1721263850078,2.92865,3414.6,3413.9,3.55320395]
[1721263851320,2.92853,3414.7,3414.0,2.92911]
[1721263852280,2.92837,3414.9,3414.1,2.92899]
[1721263852518,7.26,3415.1,3414.4,2.92876]
[1721263852723,2.92826,3415.0,3414.4,2.92876]
[1721263853817,10.18825,3415.1,3414.4,2.92876]
[1721263854493,2.92825,3415.1,3414.4,2.92876]
[1721263854823,2.92826,3415.0,3414.4,0.86636424]
[1721263855025,2.92843,3414.8,3414.2,2.4507]
[1721263857992,2.92843,3414.8,3414.2,5.37964]
[1721263858320,2.92811,3415.2,3414.4,2.92876]
[1721263861019,2.92819,3415.1,3414.4,2.92876]
[1721263861316,2.92834,3414.9,3414.2,2.4507]
[1721263861516,2.92834,3414.9,3413.9,2.92918]
[1721263861517,2.92856,3414.7,3413.9,2.92918]
[1721263861719,2.92834,3414.9,3414.0,2.92911]
[1721263861919,2.92834,3414.9,3414.1,3.758638]
[1721263862419,2.9282,3415.1,3414.1,0.829618]
[1721263862584,2.92803,3415.3,3414.5,2.9286]
[1721263862792,2.92809,3415.2,3414.5,2.9286]
[1721263864484,2.92809,3415.2,3414.4,2.92869]
[1721263864736,2.92784,3415.5,3414.8,2.92842]
[1721263865028,7.26,3415.6,3414.9,2.92832]
[1721263865230,7.26,3415.6,3414.9,3.466472]
[1721263865403,10.18774,3415.6,3414.9,3.466472]
[1721263866396,2.92774,3415.6,3414.9,3.466472]
[1721263866927,7.26,3416.1,3415.0,2.3679]
[1721263867139,12.4,3416.6,3415.0,2.3679]
[1721263867140,2.92711,3416.4,3415.7,2.3679]
[1721263867297,10.18689,3416.6,3415.8,2.92754]
[1721263867611,2.92698,3416.5,3415.8,2.92754]
[1721263868125,10.1869,3416.6,3415.9,2.92748]
[1721263868314,2.92697,3416.5,3415.9,2.92748]
[1721263868694,2.92707,3416.4,3415.7,2.3679]
[1721263869025,2.92715,3416.3,3415.5,2.92782]
[1721263869206,2.92715,3416.3,3415.5,6.689098]
[1721263869409,2.92715,3416.3,3415.5,3.761278]
[1721263869929,7.26,3416.6,3415.5,0.833518]
[1721263870225,7.26,3416.6,3415.9,2.92748]
[1721263870427,10.18689,3416.6,3415.9,2.92748]
[1721263870729,10.18689,3416.6,3415.7,2.92758]
[1721263870730,2.92699,3416.5,3415.7,2.92758]
[1721263870910,2.92699,3416.5,3415.3,2.4793]
[1721263870911,2.92699,3416.5,3415.8,2.92756]
[1721263871107,2.92699,3416.5,3415.6,2.92774]
[1721263871108,7.26,3416.6,3415.3,2.4793]
[1721263871412,2.92748,3416.0,3415.3,2.4793]
[1721263871742,2.92748,3416.0,3415.3,2.92799]
[1721263871912,2.92715,3416.3,3415.3,3.513614]
[1721263872102,2.92754,3415.9,3414.9,5.32068]
[1721263872450,2.92775,3415.6,3414.9,2.3924]
[1721263872592,2.92706,3416.4,3414.3,2.92883]
[1721263872593,2.92783,3415.5,3414.3,2.92883]
[1721263872798,2.92809,3415.2,3414.5,2.92868]
[1721263873020,2.92783,3415.5,3414.6,2.92858]
[1721263873021,2.92797,3415.4,3414.6,2.92858]
[1721263873194,2.92783,3415.5,3414.4,2.92872]
[1721263873395,2.92809,3415.2,3414.4,0.585755]
[1721263874309,2.92832,3415.0,3414.2,2.92894]
[1721263874823,2.92832,3415.0,3414.3,2.92884]
[1721263876556,2.92809,3415.2,3414.3,2.92884]
[1721263876757,2.928,3415.3,3414.3,2.92884]
[1721263876966,2.928,3415.3,3414.6,2.92858]
[1721263877319,7.26,3415.7,3414.6,2.92858]
[1721263877320,7.26,3415.7,3415.0,2.92824]
[1721263877517,7.26,3415.7,3414.7,2.4144]
[1721263877518,7.26,3415.7,3415.1,2.9281]
[1721263877950,7.26,3415.7,3414.8,2.9284]
[1721263878359,7.26,3415.7,3414.9,2.92833]
[1721263878576,7.26,3415.7,3415.2,2.92807]
[1721263878722,2.92741,3416.0,3415.2,2.92807]
[1721263879436,2.92741,3416.0,3415.3,2.92799]
[1721263879633,10.18725,3416.2,3415.5,2.9278]
[1721263880224,7.26,3416.2,3415.6,2.92773]
[1721263880533,10.18673,3416.8,3416.0,2.92733]
[1721263880717,2.92673,3416.8,3416.0,2.92733]
[1721263880917,2.92673,3416.8,3416.1,2.9273]
[1721263882376,12.5181,3417.3,3415.9,2.92747]
[1721263882377,10.18633,3417.3,3416.3,2.92709]
[1721263882754,10.18633,3417.3,3416.6,2.92688]
[1721263883764,10.18633,3417.3,3416.3,2.92709]
[1721263883947,2.9266,3417.0,3416.0,2.92732]
[1721263884337,2.92663,3416.9,3416.2,2.92715]
[1721263884554,2.92639,3417.2,3416.0,3.472552]
[1721263885223,2.92659,3417.0,3416.1,2.92727]
[1721263885422,7.26,3417.3,3416.0,2.92739]
[1721263885423,2.92664,3416.9,3416.0,2.92739]
[1721263885648,2.92664,3416.9,3416.1,2.9273]
[1721263886126,2.92646,3417.1,3415.8,2.92754]
[1721263886127,2.3328,3417.1,3415.8,2.92754]
[1721263886475,2.92713,3416.4,3415.6,5.30393]
[1721263887168,2.92714,3416.3,3415.6,5.30393]
[1721263887463,2.92714,3416.3,3415.6,2.92773]
[1721263889031,2.92714,3416.3,3415.6,3.513292]
[1721263890257,2.92732,3416.1,3415.4,2.92791]
[1721263890424,2.92732,3416.1,3415.1,5.36369]
[1721263890637,2.92732,3416.1,3415.3,2.92794]
[1721263890842,2.92732,3416.1,3415.1,5.36369]
[1721263890843,2.92714,3416.3,3415.4,2.9279]
[1721263891075,2.92723,3416.2,3415.4,3.757058]
[1721263891740,2.92711,3416.4,3415.4,3.757058]
[1721263891941,10.18682,3416.7,3415.4,3.757058]
[1721263891942,10.1868,3416.7,3415.9,2.92748]
[1721263892174,7.26,3416.7,3416.0,2.92737]
[1721263892381,7.26,3416.7,3416.1,2.9273]
[1721263892680,2.92672,3416.8,3416.1,2.9273]
[1721263892892,2.92665,3416.9,3416.1,2.9273]
[1721263894176,10.18646,3417.1,3416.1,3.746328]
[1721263894587,10.18646,3417.1,3416.4,2.92705]
[1721263894916,7.26,3417.1,3416.3,2.92711]
[1721263895200,7.26,3417.1,3416.1,0.819028]
[1721263895201,7.26,3417.1,3416.7,2.92678]
[1721263895701,7.26,3417.1,3416.8,2.92671]
[1721263895902,2.92613,3417.5,3416.8,2.92671]
[1721263896966,2.92613,3417.5,3416.6,2.92687]
[1721263896967,2.92623,3417.4,3416.6,2.92687]
[1721263897373,2.92623,3417.4,3416.7,2.92677]
[1721263897777,2.92661,3417.0,3416.2,2.92721]
[1721263898216,2.92646,3417.1,3416.2,3.74622]
[1721263898505,2.92646,3417.1,3416.4,2.927]
[1721263898673,2.92654,3417.0,3416.4,2.927]
[1721263898868,2.92642,3417.2,3416.4,2.927]
[1721263899066,2.92628,3417.3,3416.6,2.92688]
[1721263899470,2.92628,3417.3,3416.7,2.92678]
[1721263900471,2.92612,3417.5,3416.7,2.92678]
[1721263900716,2.9262,3417.4,3416.8,2.4034]
[1721263902290,13.11212,3417.6,3416.8,2.4034]
[1721263902486,10.18603,3417.6,3416.8,5.3301]
[1721263902707,10.18603,3417.6,3416.8,6.16165814]
[1721263903483,2.92588,3417.8,3417.0,2.92653]
[1721263903686,2.92588,3417.8,3417.1,2.92645]
[1721263904036,10.1857,3418.0,3417.1,3.84111344]
[1721263905415,2.92578,3417.9,3417.2,2.92635]
[1721263907717,2.92586,3417.8,3417.2,2.92635]
[1721263908230,2.92596,3417.7,3416.9,2.9266]
[1721263908444,2.92596,3417.7,3417.0,2.92652]
[1721263910437,2.92612,3417.5,3416.8,2.4034]
[1721263910728,2.451,3417.9,3416.7,2.92679]
[1721263910892,2.92611,3417.5,3416.7,3.8071472]
[1721263911730,2.92611,3417.5,3416.8,2.9267]
[1721263912134,2.92601,3417.7,3416.9,2.92657]
[1721263912329,2.92601,3417.7,3417.0,3.59070489]
[1721263912543,2.92601,3417.7,3417.0,0.66423489]
[1721263912869,2.92611,3417.5,3416.8,2.9267]
[1721263913050,2.92601,3417.7,3416.8,2.9267]
[1721263913051,2.92603,3417.6,3416.9,2.92662]
[1721263913231,2.92595,3417.7,3417.0,2.92651]
[1721263913432,2.92579,3417.9,3417.1,2.92644]
[1721263913645,2.92586,3417.8,3417.1,2.92644]
[1721263913845,2.92586,3417.8,3417.2,0.585295]
[1721263914464,2.92594,3417.7,3417.2,0.585295]
[1721263914630,2.92594,3417.7,3417.1,2.3699]
[1721263914828,2.92594,3417.7,3416.8,2.92668]
[1721263915152,2.92604,3417.6,3416.8,2.92668]
[1721263915364,2.92604,3417.6,3416.9,2.92661]
[1721263917647,2.92577,3417.9,3417.2,2.92635]
[1721263918139,7.26,3418.0,3417.3,2.92625]
[1721263918468,7.26,3418.0,3417.4,5.40939]
[1721263918666,7.26,3418.0,3417.5,2.92611]
[1721263918867,2.92544,3418.3,3417.6,2.92602]
[1721263919069,2.92551,3418.2,3417.6,2.92602]
[1721263920338,2.92551,3418.2,3417.4,8.33552]
[1721263920532,2.92551,3418.2,3417.5,3.8181899]
[1721263920835,2.9256,3418.1,3417.5,3.8181899]
[1721263921168,2.92551,3418.2,3417.5,0.8920799]
[1721263921338,7.26,3418.4,3417.1,2.3297]
[1721263921339,2.92577,3417.9,3417.1,5.25612]
[1721263921737,2.92577,3417.9,3417.2,2.92637]
[1721263922574,2.92564,3418.1,3417.2,2.92637]
[1721263922751,2.92551,3418.2,3417.5,2.92606]
[1721263923136,2.92563,3418.1,3417.4,2.92619]
[1721263923363,2.92563,3418.1,3417.4,3.32706327]
[1721263926653,10.18537,3418.4,3417.4,0.40087327]
[1721263927064,7.26,3418.4,3417.7,2.92589]
[1721263927264,2.92519,3418.6,3417.7,2.92589]
[1721263927464,2.92526,3418.5,3417.8,2.92579]
[1721263927641,2.92526,3418.5,3417.9,0.585168]
[1721263929480,2.92534,3418.4,3417.6,2.92596]
[1721263929801,2.92534,3418.4,3417.7,2.92592]
[1721263931664,2.92534,3418.4,3417.8,2.92585]